[Event "Titled Tuesday Blitz November 07 Early 2023"]
[White "Malek, Jan"]
[Black "Mitrabha, Guha"]
[WhiteFideId "21864080"]
[BlackFideId "5057000"]
[WhiteElo "2685"]
[BlackElo "2886"]
[Result "1-0"]
[Round "3"]
[TimeControl "180+1"]
[Date "2023.11.07"]
[WhiteClock "0:01:14"]
[BlackClock "0:01:27"]
[Board "28"]

1. c4 {[%clk 0:03:00]}  g6 {[%clk 0:02:49]} 2. d4 {[%clk 0:02:50]}  Bg7 {[%clk 0:02:50]} 3. Nf3 {[%clk 0:02:49]}  c5 {[%clk 0:02:47]} 4. d5 {[%clk 0:02:48]}  b5 {[%clk 0:02:47]} 5. cxb5 {[%clk 0:02:44]}  a6 {[%clk 0:02:47]} 6. e3 {[%clk 0:02:45]}  Nf6 {[%clk 0:02:47]} 7. Nc3 {[%clk 0:02:43]}  O-O {[%clk 0:02:47]} 8. a4 {[%clk 0:02:41]}  d6 {[%clk 0:02:47]} 9. Bd2 {[%clk 0:02:38]}  axb5 {[%clk 0:02:41]} 10. Bxb5 {[%clk 0:02:37]}  Ba6 {[%clk 0:02:41]} 11. O-O {[%clk 0:02:29]}  Nbd7 {[%clk 0:02:30]} 12. Qe2 {[%clk 0:02:08]}  Ne8 {[%clk 0:02:23]} 13. Bxa6 {[%clk 0:02:07]}  Nc7 {[%clk 0:02:19]} 14. Bc4 {[%clk 0:02:06]}  Qb8 {[%clk 0:02:19]} 15. Nb5 {[%clk 0:02:05]}  Na6 {[%clk 0:02:18]} 16. Bc3 {[%clk 0:02:04]}  f6 {[%clk 0:02:18]} 17. e4 {[%clk 0:02:02]}  Nb6 {[%clk 0:02:18]} 18. Nd2 {[%clk 0:02:01]}  Qb7 {[%clk 0:02:17]} 19. h4 {[%clk 0:01:57]}  h5 {[%clk 0:02:15]} 20. g4 {[%clk 0:01:55]}  hxg4 {[%clk 0:02:04]} 21. Qxg4 {[%clk 0:01:56]}  Kh7 {[%clk 0:02:05]} 22. h5 {[%clk 0:01:55]}  gxh5 {[%clk 0:02:05]} 23. Qxh5+ {[%clk 0:01:55]}  Bh6 {[%clk 0:02:06]} 24. Kh1 {[%clk 0:01:38]}  Rg8 {[%clk 0:02:00]} 25. Rg1 {[%clk 0:01:37]}  Nb4 {[%clk 0:01:58]} 26. Bxb4 {[%clk 0:01:28]}  cxb4 {[%clk 0:01:58]} 27. Bd3 {[%clk 0:01:27]}  e5 {[%clk 0:01:31]} 28. Nxd6 {[%clk 0:01:18]}  Qd7 {[%clk 0:01:27]} 29. Nf5 {[%clk 0:01:14]} 1-0


[Site "https://www.chess.com"]

[Event "Titled Tuesday Blitz November 07 Early 2023"]
[White "Goldin, Alexander"]
[Black "Subelj, Jan"]
[WhiteFideId "2019540"]
[BlackFideId "14618583"]
[WhiteElo "2675"]
[BlackElo "2867"]
[Result "0-1"]
[Round "3"]
[TimeControl "180+1"]
[Date "2023.11.07"]
[WhiteClock "0:00:08"]
[BlackClock "0:00:16"]
[Board "32"]

1. d4 {[%clk 0:02:59]}  Nc6 {[%clk 0:02:58]} 2. Nf3 {[%clk 0:02:58]}  e6 {[%clk 0:02:56]} 3. c4 {[%clk 0:02:57]}  Bb4+ {[%clk 0:02:54]} 4. Bd2 {[%clk 0:02:56]}  Qe7 {[%clk 0:02:54]} 5. g3 {[%clk 0:02:54]}  Nf6 {[%clk 0:02:53]} 6. Nc3 {[%clk 0:02:54]}  Bxc3 {[%clk 0:02:52]} 7. Bxc3 {[%clk 0:02:54]}  Ne4 {[%clk 0:02:53]} 8. Rc1 {[%clk 0:02:54]}  O-O {[%clk 0:02:52]} 9. Bg2 {[%clk 0:02:54]}  d6 {[%clk 0:02:52]} 10. d5 {[%clk 0:02:55]}  Nxc3 {[%clk 0:02:50]} 11. Rxc3 {[%clk 0:02:54]}  Nb8 {[%clk 0:02:51]} 12. dxe6 {[%clk 0:02:52]}  fxe6 {[%clk 0:02:48]} 13. O-O {[%clk 0:02:46]}  e5 {[%clk 0:02:31]} 14. c5 {[%clk 0:02:45]}  Be6 {[%clk 0:02:30]} 15. cxd6 {[%clk 0:02:33]}  cxd6 {[%clk 0:02:31]} 16. b4 {[%clk 0:02:03]}  Nd7 {[%clk 0:02:22]} 17. Rc7 {[%clk 0:01:57]}  Rab8 {[%clk 0:02:20]} 18. Qa4 {[%clk 0:01:54]}  a6 {[%clk 0:02:14]} 19. Rfc1 {[%clk 0:01:45]}  Qf6 {[%clk 0:02:13]} 20. Rxd7 {[%clk 0:00:46]}  b5 {[%clk 0:02:10]} 21. Rxg7+ {[%clk 0:00:45]}  Kxg7 {[%clk 0:02:08]} 22. Qxa6 {[%clk 0:00:40]}  e4 {[%clk 0:02:08]} 23. Qa7+ {[%clk 0:00:29]}  Kh8 {[%clk 0:01:56]} 24. Nh4 {[%clk 0:00:27]}  Ra8 {[%clk 0:01:55]} 25. Qe3 {[%clk 0:00:27]}  d5 {[%clk 0:01:55]} 26. Rc6 {[%clk 0:00:25]}  Rxa2 {[%clk 0:01:53]} 27. h3 {[%clk 0:00:23]}  Rc8 {[%clk 0:01:16]} 28. Qc5 {[%clk 0:00:18]}  Rxc6 {[%clk 0:01:14]} 29. Qxc6 {[%clk 0:00:19]}  Ra1+ {[%clk 0:01:11]} 30. Kh2 {[%clk 0:00:19]}  Kg7 {[%clk 0:00:49]} 31. Qc7+ {[%clk 0:00:18]}  Bf7 {[%clk 0:00:48]} 32. f4 {[%clk 0:00:15]}  Re1 {[%clk 0:00:29]} 33. g4 {[%clk 0:00:15]}  Qxh4 {[%clk 0:00:27]} 34. g5 {[%clk 0:00:15]}  Qf2 {[%clk 0:00:17]} 35. Qe5+ {[%clk 0:00:14]}  Kf8 {[%clk 0:00:17]} 36. Qd6+ {[%clk 0:00:13]}  Ke8 {[%clk 0:00:17]} 37. Qb8+ {[%clk 0:00:12]}  Kd7 {[%clk 0:00:17]} 38. Qb7+ {[%clk 0:00:12]}  Kd6 {[%clk 0:00:17]} 39. Qb6+ {[%clk 0:00:08]}  Qxb6 {[%clk 0:00:16]} 0-1


[Site "https://www.chess.com"]

[Event "Titled Tuesday Blitz November 07 Early 2023"]
[White "Degenbaev, Aziz"]
[Black "Klukin, Kirill"]
[WhiteFideId "13802640"]
[BlackFideId "24199273"]
[WhiteElo "2673"]
[BlackElo "2850"]
[Result "0-1"]
[Round "3"]
[TimeControl "180+1"]
[Date "2023.11.07"]
[WhiteClock "0:00:35"]
[BlackClock "0:00:25"]
[Board "33"]

1. e4 {[%clk 0:03:00]}  c5 {[%clk 0:02:54]} 2. Nf3 {[%clk 0:03:01]}  g6 {[%clk 0:02:54]} 3. c4 {[%clk 0:02:58]}  Bg7 {[%clk 0:02:54]} 4. d4 {[%clk 0:02:59]}  cxd4 {[%clk 0:02:54]} 5. Nxd4 {[%clk 0:02:59]}  Nc6 {[%clk 0:02:55]} 6. Be3 {[%clk 0:03:00]}  Nf6 {[%clk 0:02:55]} 7. Nc3 {[%clk 0:03:00]}  O-O {[%clk 0:02:55]} 8. Be2 {[%clk 0:02:58]}  d6 {[%clk 0:02:55]} 9. O-O {[%clk 0:02:59]}  Bd7 {[%clk 0:02:55]} 10. f3 {[%clk 0:02:58]}  Nxd4 {[%clk 0:02:54]} 11. Bxd4 {[%clk 0:02:58]}  a5 {[%clk 0:02:55]} 12. Qd2 {[%clk 0:02:57]}  Bc6 {[%clk 0:02:55]} 13. Bf2 {[%clk 0:02:48]}  Nd7 {[%clk 0:02:55]} 14. Rac1 {[%clk 0:02:48]}  a4 {[%clk 0:02:54]} 15. Rfd1 {[%clk 0:02:45]}  a3 {[%clk 0:02:49]} 16. b4 {[%clk 0:02:44]}  b6 {[%clk 0:02:42]} 17. Nd5 {[%clk 0:02:29]}  Bb2 {[%clk 0:02:20]} 18. Rb1 {[%clk 0:02:18]}  Ba4 {[%clk 0:01:54]} 19. Rf1 {[%clk 0:02:12]}  Rc8 {[%clk 0:01:48]} 20. Bd4 {[%clk 0:01:32]}  Bxd4+ {[%clk 0:01:40]} 21. Qxd4 {[%clk 0:01:31]}  Bc6 {[%clk 0:01:30]} 22. Rb3 {[%clk 0:01:27]}  Ra8 {[%clk 0:01:24]} 23. Qe3 {[%clk 0:01:22]}  e6 {[%clk 0:01:23]} 24. Nc3 {[%clk 0:01:08]}  Qf6 {[%clk 0:01:07]} 25. Rd1 {[%clk 0:01:07]}  d5 {[%clk 0:00:40]} 26. cxd5 {[%clk 0:00:56]}  exd5 {[%clk 0:00:41]} 27. Nxd5 {[%clk 0:00:37]}  Bxd5 {[%clk 0:00:41]} 28. Rxd5 {[%clk 0:00:38]}  Rfd8 {[%clk 0:00:27]} 29. Rxa3 {[%clk 0:00:36]}  Rxa3 {[%clk 0:00:23]} 30. Qxa3 {[%clk 0:00:36]}  Ne5 {[%clk 0:00:24]} 31. Rxd8+ {[%clk 0:00:35]}  Qxd8 {[%clk 0:00:25]} 32. Qd3 {[%clk 0:00:35]}  Nxd3 {[%clk 0:00:25]} 0-1


[Site "https://www.chess.com"]

[Event "Titled Tuesday Blitz November 07 Early 2023"]
[White "amanmuhammethommadov"]
[Black "Beerdsen, Thomas"]
[BlackFideId "1030108"]
[WhiteElo "2665"]
[BlackElo "2848"]
[Result "1-0"]
[Round "3"]
[TimeControl "180+1"]
[Date "2023.11.07"]
[WhiteClock "0:00:22"]
[BlackClock "0:00:04"]
[Board "35"]

1. e4 {[%clk 0:03:00]}  e5 {[%clk 0:02:59]} 2. Nf3 {[%clk 0:03:00]}  Nc6 {[%clk 0:02:59]} 3. Bb5 {[%clk 0:03:00]}  f5 {[%clk 0:03:00]} 4. d3 {[%clk 0:02:59]}  fxe4 {[%clk 0:03:00]} 5. dxe4 {[%clk 0:03:00]}  Nf6 {[%clk 0:03:00]} 6. O-O {[%clk 0:03:00]}  d6 {[%clk 0:03:00]} 7. Nc3 {[%clk 0:03:00]}  Be7 {[%clk 0:03:00]} 8. Bc4 {[%clk 0:02:59]}  Na5 {[%clk 0:03:00]} 9. Be2 {[%clk 0:02:59]}  Nc6 {[%clk 0:03:01]} 10. Bc4 {[%clk 0:02:59]}  Bg4 {[%clk 0:03:00]} 11. Qd3 {[%clk 0:02:56]}  Qd7 {[%clk 0:02:51]} 12. Nd5 {[%clk 0:02:55]}  Bxf3 {[%clk 0:02:40]} 13. Qxf3 {[%clk 0:02:55]}  Nd4 {[%clk 0:02:32]} 14. Qd3 {[%clk 0:02:55]}  c6 {[%clk 0:02:27]} 15. Nxf6+ {[%clk 0:02:52]}  Bxf6 {[%clk 0:02:28]} 16. c3 {[%clk 0:02:49]}  Ne6 {[%clk 0:02:28]} 17. Be3 {[%clk 0:02:45]}  b5 {[%clk 0:02:09]} 18. Bb3 {[%clk 0:02:44]}  O-O {[%clk 0:02:06]} 19. Rad1 {[%clk 0:02:41]}  Be7 {[%clk 0:01:54]} 20. Qe2 {[%clk 0:02:28]}  Kh8 {[%clk 0:01:44]} 21. Qg4 {[%clk 0:02:28]}  Nc5 {[%clk 0:01:45]} 22. Qxd7 {[%clk 0:02:23]}  Nxd7 {[%clk 0:01:45]} 23. Rd2 {[%clk 0:02:16]}  a5 {[%clk 0:01:41]} 24. a4 {[%clk 0:02:11]}  Rfb8 {[%clk 0:01:25]} 25. axb5 {[%clk 0:02:10]}  cxb5 {[%clk 0:01:23]} 26. Rfd1 {[%clk 0:01:46]}  a4 {[%clk 0:01:21]} 27. Be6 {[%clk 0:01:42]}  Nf6 {[%clk 0:01:19]} 28. f3 {[%clk 0:01:42]}  b4 {[%clk 0:01:16]} 29. cxb4 {[%clk 0:01:36]}  Rxb4 {[%clk 0:01:17]} 30. Ra1 {[%clk 0:01:36]}  g6 {[%clk 0:01:09]} 31. Rc2 {[%clk 0:01:33]}  Bd8 {[%clk 0:00:55]} 32. Kf1 {[%clk 0:01:20]}  Kg7 {[%clk 0:00:45]} 33. Ke2 {[%clk 0:01:04]}  Rab8 {[%clk 0:00:43]} 34. Ra2 {[%clk 0:01:03]}  Ne8 {[%clk 0:00:15]} 35. Bd2 {[%clk 0:01:01]}  R4b6 {[%clk 0:00:12]} 36. Rxa4 {[%clk 0:01:01]}  Rxb2 {[%clk 0:00:11]} 37. Rxb2 {[%clk 0:01:01]}  Rxb2 {[%clk 0:00:12]} 38. Kd3 {[%clk 0:00:34]}  Bb6 {[%clk 0:00:12]} 39. g4 {[%clk 0:00:24]}  Nc7 {[%clk 0:00:13]} 40. Bc4 {[%clk 0:00:24]}  Bd4 {[%clk 0:00:12]} 41. g5 {[%clk 0:00:23]}  Bc5 {[%clk 0:00:06]} 42. Ra1 {[%clk 0:00:22]}  Ne8 {[%clk 0:00:04]} 43. Ra8 {[%clk 0:00:22]}  Nc7 {[%clk 0:00:04]} 44. Rg8# {[%clk 0:00:22]} 1-0


[Site "https://www.chess.com"]

[Event "Titled Tuesday Blitz November 07 Early 2023"]
[White "Tarigan, Gilbert Elroy"]
[Black "Kleiman, Jake"]
[WhiteFideId "7108133"]
[BlackFideId "2020041"]
[WhiteElo "2842"]
[BlackElo "2665"]
[Result "1-0"]
[Round "3"]
[TimeControl "180+1"]
[Date "2023.11.07"]
[WhiteClock "0:00:04"]
[BlackClock "0:00:06"]
[Board "36"]

1. d4 {[%clk 0:03:00]}  Nf6 {[%clk 0:02:59]} 2. Nf3 {[%clk 0:02:58]}  e6 {[%clk 0:02:59]} 3. c4 {[%clk 0:02:57]}  Bb4+ {[%clk 0:02:58]} 4. Bd2 {[%clk 0:02:56]}  Bxd2+ {[%clk 0:02:59]} 5. Qxd2 {[%clk 0:02:57]}  O-O {[%clk 0:02:59]} 6. Nc3 {[%clk 0:02:58]}  d5 {[%clk 0:02:59]} 7. e3 {[%clk 0:02:58]}  Qe7 {[%clk 0:03:00]} 8. Rc1 {[%clk 0:02:56]}  Rd8 {[%clk 0:03:00]} 9. cxd5 {[%clk 0:02:45]}  exd5 {[%clk 0:03:01]} 10. Bd3 {[%clk 0:02:44]}  Nc6 {[%clk 0:03:01]} 11. a3 {[%clk 0:02:32]}  Ne4 {[%clk 0:02:53]} 12. Qc2 {[%clk 0:02:28]}  Bf5 {[%clk 0:02:52]} 13. O-O {[%clk 0:02:25]}  Rd6 {[%clk 0:02:52]} 14. Ne2 {[%clk 0:02:15]}  Re8 {[%clk 0:02:33]} 15. Ng3 {[%clk 0:02:14]}  Bg6 {[%clk 0:02:26]} 16. b4 {[%clk 0:02:07]}  a6 {[%clk 0:02:10]} 17. Rfd1 {[%clk 0:01:52]}  h5 {[%clk 0:02:10]} 18. Ne2 {[%clk 0:01:30]}  h4 {[%clk 0:01:36]} 19. Nf4 {[%clk 0:01:26]}  Bh7 {[%clk 0:01:36]} 20. Ne5 {[%clk 0:01:13]}  Nxe5 {[%clk 0:01:20]} 21. dxe5 {[%clk 0:01:14]}  Qxe5 {[%clk 0:01:20]} 22. Bxe4 {[%clk 0:01:01]}  dxe4 {[%clk 0:00:54]} 23. Rxd6 {[%clk 0:01:00]}  cxd6 {[%clk 0:00:55]} 24. h3 {[%clk 0:00:53]}  Bf5 {[%clk 0:00:51]} 25. Qd2 {[%clk 0:00:37]}  g5 {[%clk 0:00:34]} 26. Ne2 {[%clk 0:00:33]}  d5 {[%clk 0:00:26]} 27. Nd4 {[%clk 0:00:30]}  Bd7 {[%clk 0:00:24]} 28. Qd1 {[%clk 0:00:27]}  Kg7 {[%clk 0:00:19]} 29. Rc5 {[%clk 0:00:20]}  Kg6 {[%clk 0:00:17]} 30. Qc1 {[%clk 0:00:18]}  g4 {[%clk 0:00:13]} 31. Rc7 {[%clk 0:00:12]}  Re7 {[%clk 0:00:07]} 32. Ne2 {[%clk 0:00:12]}  gxh3 {[%clk 0:00:06]} 33. Nf4+ {[%clk 0:00:12]}  Kg7 {[%clk 0:00:05]} 34. gxh3 {[%clk 0:00:10]}  Qg5+ {[%clk 0:00:04]} 35. Kh2 {[%clk 0:00:10]}  Bf5 {[%clk 0:00:03]} 36. Qc3+ {[%clk 0:00:08]}  Kh7 {[%clk 0:00:02]} 37. Rxe7 {[%clk 0:00:02]}  Qxe7 {[%clk 0:00:03]} 38. Nxd5 {[%clk 0:00:03]}  Qd6+ {[%clk 0:00:03]} 39. Nf4 {[%clk 0:00:04]}  Bg6 {[%clk 0:00:02]} 40. Qe1 {[%clk 0:00:02]}  Qe5 {[%clk 0:00:02]} 41. Qd2 {[%clk 0:00:02]}  Kg7 {[%clk 0:00:01]} 42. Qd8 {[%clk 0:00:02]}  Qf6 {[%clk 0:00:02]} 43. Qd2 {[%clk 0:00:01]}  Qe5 {[%clk 0:00:02]} 44. Kg1 {[%clk 0:00:01]}  Qf6 {[%clk 0:00:03]} 45. Qd5 {[%clk 0:00:02]}  Qe7 {[%clk 0:00:03]} 46. Qd4+ {[%clk 0:00:02]}  Qf6 {[%clk 0:00:03]} 47. Qd5 {[%clk 0:00:02]}  Qe7 {[%clk 0:00:04]} 48. Kg2 {[%clk 0:00:02]}  Qf6 {[%clk 0:00:05]} 49. Qxb7 {[%clk 0:00:02]}  Bf5 {[%clk 0:00:05]} 50. Qd5 {[%clk 0:00:02]}  Qg5+ {[%clk 0:00:06]} 51. Kh2 {[%clk 0:00:02]}  Qf6 {[%clk 0:00:06]} 52. Nh5+ {[%clk 0:00:03]}  Kg6 {[%clk 0:00:05]} 53. Nxf6 {[%clk 0:00:04]}  Kxf6 {[%clk 0:00:06]} 54. Qd6+ {[%clk 0:00:04]} 1-0


[Site "https://www.chess.com"]

[Event "Titled Tuesday Blitz November 07 Early 2023"]
[White "Skvortsov, Andrei"]
[Black "mind1mover"]
[WhiteFideId "24108600"]
[WhiteElo "2651"]
[BlackElo "2840"]
[Result "1-0"]
[Round "3"]
[TimeControl "180+1"]
[Date "2023.11.07"]
[WhiteClock "0:00:48"]
[BlackClock "0:00:12"]
[Board "37"]

1. e4 {[%clk 0:03:00]}  Nc6 {[%clk 0:03:00]} 2. Nc3 {[%clk 0:02:59]}  Nf6 {[%clk 0:02:59]} 3. Nf3 {[%clk 0:02:56]}  d6 {[%clk 0:02:59]} 4. h3 {[%clk 0:02:56]}  g6 {[%clk 0:03:00]} 5. d4 {[%clk 0:02:56]}  a6 {[%clk 0:02:59]} 6. g4 {[%clk 0:02:52]}  b5 {[%clk 0:02:56]} 7. a3 {[%clk 0:02:52]}  Bb7 {[%clk 0:02:52]} 8. Bg2 {[%clk 0:02:52]}  e5 {[%clk 0:02:52]} 9. dxe5 {[%clk 0:02:47]}  Nxe5 {[%clk 0:02:52]} 10. Nxe5 {[%clk 0:02:45]}  dxe5 {[%clk 0:02:52]} 11. Qxd8+ {[%clk 0:02:46]}  Rxd8 {[%clk 0:02:53]} 12. Bg5 {[%clk 0:02:46]}  Be7 {[%clk 0:02:50]} 13. Be3 {[%clk 0:02:44]}  O-O {[%clk 0:02:27]} 14. O-O {[%clk 0:02:40]}  Nd7 {[%clk 0:02:18]} 15. Nd5 {[%clk 0:02:33]}  Bxd5 {[%clk 0:02:14]} 16. exd5 {[%clk 0:02:34]}  Bc5 {[%clk 0:02:13]} 17. Bh6 {[%clk 0:02:31]}  Rfe8 {[%clk 0:02:11]} 18. b4 {[%clk 0:02:27]}  Bd4 {[%clk 0:02:08]} 19. c3 {[%clk 0:02:27]}  Bxc3 {[%clk 0:02:00]} 20. Rac1 {[%clk 0:02:27]}  Bb2 {[%clk 0:02:00]} 21. Rxc7 {[%clk 0:02:27]}  Bxa3 {[%clk 0:02:01]} 22. Rb1 {[%clk 0:02:21]}  Nb6 {[%clk 0:02:01]} 23. Rb3 {[%clk 0:02:18]}  Nc4 {[%clk 0:01:49]} 24. Rxc4 {[%clk 0:02:16]}  bxc4 {[%clk 0:01:50]} 25. Rxa3 {[%clk 0:02:16]}  Rd6 {[%clk 0:01:44]} 26. Be3 {[%clk 0:02:15]}  e4 {[%clk 0:01:39]} 27. Ra5 {[%clk 0:02:13]}  c3 {[%clk 0:01:15]} 28. Rc5 {[%clk 0:02:10]}  c2 {[%clk 0:01:02]} 29. g5 {[%clk 0:02:05]}  Re5 {[%clk 0:00:42]} 30. Rc8+ {[%clk 0:01:59]}  Kg7 {[%clk 0:00:42]} 31. Bd4 {[%clk 0:01:52]}  Rxd5 {[%clk 0:00:43]} 32. Bxe5+ {[%clk 0:01:53]}  Rxe5 {[%clk 0:00:44]} 33. h4 {[%clk 0:01:47]}  Rb5 {[%clk 0:00:40]} 34. Rxc2 {[%clk 0:01:44]}  Rxb4 {[%clk 0:00:40]} 35. Kh2 {[%clk 0:01:41]}  a5 {[%clk 0:00:28]} 36. Kg3 {[%clk 0:01:40]}  a4 {[%clk 0:00:26]} 37. Ra2 {[%clk 0:01:39]}  h6 {[%clk 0:00:23]} 38. gxh6+ {[%clk 0:01:39]}  Kxh6 {[%clk 0:00:23]} 39. Bf1 {[%clk 0:01:39]}  f5 {[%clk 0:00:20]} 40. Be2 {[%clk 0:01:39]}  g5 {[%clk 0:00:18]} 41. Bd1 {[%clk 0:01:33]}  gxh4+ {[%clk 0:00:17]} 42. Kxh4 {[%clk 0:01:21]}  Kg6 {[%clk 0:00:16]} 43. Kg3 {[%clk 0:01:20]}  Kg5 {[%clk 0:00:13]} 44. Rxa4 {[%clk 0:01:19]}  Rb1 {[%clk 0:00:14]} 45. Rd4 {[%clk 0:01:14]}  Rc1 {[%clk 0:00:13]} 46. Kg2 {[%clk 0:01:11]}  Kf4 {[%clk 0:00:13]} 47. Kf1 {[%clk 0:01:11]}  Ra1 {[%clk 0:00:09]} 48. Ke1 {[%clk 0:01:06]}  Ke5 {[%clk 0:00:06]} 49. Rd8 {[%clk 0:01:01]}  Ra7 {[%clk 0:00:07]} 50. Bh5 {[%clk 0:01:00]}  Rg7 {[%clk 0:00:03]} 51. Rf8 {[%clk 0:00:57]}  Rg5 {[%clk 0:00:03]} 52. Be8 {[%clk 0:00:56]}  Rg7 {[%clk 0:00:03]} 53. Bb5 {[%clk 0:00:52]}  f4 {[%clk 0:00:02]} 54. Bc6 {[%clk 0:00:50]}  Kd4 {[%clk 0:00:01]} 55. Rxf4 {[%clk 0:00:49]}  Ke5 {[%clk 0:00:01]} 56. Rxe4+ {[%clk 0:00:49]}  Kf5 {[%clk 0:00:02]} 57. Re3 {[%clk 0:00:48]}  Rc7 {[%clk 0:00:02]} 58. Bf3 {[%clk 0:00:48]}  Kf4 {[%clk 0:00:03]} 59. Kf1 {[%clk 0:00:46]}  Rc1+ {[%clk 0:00:03]} 60. Kg2 {[%clk 0:00:46]}  Rc7 {[%clk 0:00:04]} 61. Re4+ {[%clk 0:00:47]}  Kf5 {[%clk 0:00:04]} 62. Ra4 {[%clk 0:00:46]}  Rg7+ {[%clk 0:00:04]} 63. Kf1 {[%clk 0:00:47]}  Rc7 {[%clk 0:00:03]} 64. Be2 {[%clk 0:00:47]}  Ke5 {[%clk 0:00:04]} 65. Bd3 {[%clk 0:00:46]}  Rc3 {[%clk 0:00:04]} 66. Ke2 {[%clk 0:00:46]}  Rc7 {[%clk 0:00:04]} 67. Ke3 {[%clk 0:00:45]}  Re7 {[%clk 0:00:03]} 68. Re4+ {[%clk 0:00:45]}  Kf6 {[%clk 0:00:04]} 69. Rxe7 {[%clk 0:00:45]}  Kxe7 {[%clk 0:00:05]} 70. Kf4 {[%clk 0:00:46]}  Kf6 {[%clk 0:00:05]} 71. Bf1 {[%clk 0:00:45]}  Ke6 {[%clk 0:00:06]} 72. Kg5 {[%clk 0:00:45]}  Kf7 {[%clk 0:00:06]} 73. Kf5 {[%clk 0:00:45]}  Kg7 {[%clk 0:00:07]} 74. f4 {[%clk 0:00:45]}  Kf7 {[%clk 0:00:07]} 75. Ke5 {[%clk 0:00:46]}  Ke7 {[%clk 0:00:07]} 76. f5 {[%clk 0:00:46]}  Kf7 {[%clk 0:00:08]} 77. f6 {[%clk 0:00:47]}  Kf8 {[%clk 0:00:08]} 78. Ke6 {[%clk 0:00:47]}  Ke8 {[%clk 0:00:09]} 79. f7+ {[%clk 0:00:48]}  Kf8 {[%clk 0:00:09]} 80. Be2 {[%clk 0:00:48]}  Kg7 {[%clk 0:00:10]} 81. Ke7 {[%clk 0:00:49]}  Kg6 {[%clk 0:00:10]} 82. f8=Q {[%clk 0:00:49]}  Kg5 {[%clk 0:00:11]} 83. Qf3 {[%clk 0:00:50]}  Kh6 {[%clk 0:00:12]} 84. Qg4 {[%clk 0:00:48]}  Kh7 {[%clk 0:00:12]} 85. Kf6 {[%clk 0:00:48]}  Kh6 {[%clk 0:00:12]} 86. Qg6# {[%clk 0:00:48]} 1-0


[Site "https://www.chess.com"]

[Event "Titled Tuesday Blitz November 07 Early 2023"]
[White "Kononenko, Dmitry"]
[Black "Nyzhnyk, Illya"]
[WhiteFideId "14113538"]
[BlackFideId "14118084"]
[WhiteElo "2602"]
[BlackElo "2828"]
[Result "0-1"]
[Round "3"]
[TimeControl "180+1"]
[Date "2023.11.07"]
[WhiteClock "0:00:13"]
[BlackClock "0:00:42"]
[Board "41"]

1. d4 {[%clk 0:02:58]}  Nf6 {[%clk 0:02:58]} 2. c4 {[%clk 0:02:59]}  g6 {[%clk 0:02:59]} 3. Nc3 {[%clk 0:02:58]}  Bg7 {[%clk 0:02:59]} 4. Nf3 {[%clk 0:02:58]}  O-O {[%clk 0:02:59]} 5. g3 {[%clk 0:02:58]}  d6 {[%clk 0:03:00]} 6. Bg2 {[%clk 0:02:58]}  c6 {[%clk 0:03:01]} 7. O-O {[%clk 0:02:58]}  Bf5 {[%clk 0:03:02]} 8. Nd2 {[%clk 0:02:55]}  e5 {[%clk 0:02:56]} 9. d5 {[%clk 0:02:53]}  c5 {[%clk 0:02:55]} 10. e4 {[%clk 0:02:51]}  Bd7 {[%clk 0:02:56]} 11. f4 {[%clk 0:02:51]}  Re8 {[%clk 0:02:52]} 12. fxe5 {[%clk 0:02:47]}  Rxe5 {[%clk 0:02:52]} 13. Nf3 {[%clk 0:02:47]}  Bg4 {[%clk 0:02:53]} 14. Qc2 {[%clk 0:02:45]}  Bxf3 {[%clk 0:02:52]} 15. Bxf3 {[%clk 0:02:44]}  a6 {[%clk 0:02:48]} 16. Bf4 {[%clk 0:02:43]}  Nbd7 {[%clk 0:02:48]} 17. Bxe5 {[%clk 0:02:40]}  Nxe5 {[%clk 0:02:49]} 18. b3 {[%clk 0:02:40]}  Bh6 {[%clk 0:02:48]} 19. Rae1 {[%clk 0:02:37]}  Qd7 {[%clk 0:02:47]} 20. Bg2 {[%clk 0:02:36]}  Kg7 {[%clk 0:02:47]} 21. h3 {[%clk 0:02:26]}  b5 {[%clk 0:02:47]} 22. Ne2 {[%clk 0:02:22]}  b4 {[%clk 0:02:43]} 23. Nf4 {[%clk 0:02:17]}  Qe7 {[%clk 0:02:41]} 24. Kh1 {[%clk 0:02:09]}  Nfd7 {[%clk 0:02:41]} 25. Rf2 {[%clk 0:01:50]}  Bg5 {[%clk 0:02:40]} 26. Ref1 {[%clk 0:01:50]}  h5 {[%clk 0:02:37]} 27. h4 {[%clk 0:01:50]}  Bf6 {[%clk 0:02:36]} 28. Bh3 {[%clk 0:01:48]}  Ng4 {[%clk 0:02:16]} 29. Bxg4 {[%clk 0:01:44]}  hxg4 {[%clk 0:02:17]} 30. Qe2 {[%clk 0:01:34]}  Bd4 {[%clk 0:02:14]} 31. Rh2 {[%clk 0:01:20]}  Nf6 {[%clk 0:02:09]} 32. h5 {[%clk 0:01:19]}  Qxe4+ {[%clk 0:01:52]} 33. Qxe4 {[%clk 0:01:18]}  Nxe4 {[%clk 0:01:53]} 34. Kg2 {[%clk 0:01:18]}  g5 {[%clk 0:01:45]} 35. Nd3 {[%clk 0:01:10]}  f6 {[%clk 0:01:39]} 36. Re1 {[%clk 0:01:06]}  f5 {[%clk 0:01:38]} 37. Rf1 {[%clk 0:01:02]}  Kf6 {[%clk 0:01:37]} 38. h6 {[%clk 0:01:01]}  Rh8 {[%clk 0:01:36]} 39. h7 {[%clk 0:00:55]}  Kg6 {[%clk 0:01:37]} 40. Rfh1 {[%clk 0:00:52]}  Bg7 {[%clk 0:01:36]} 41. Rf1 {[%clk 0:00:48]}  Bc3 {[%clk 0:01:23]} 42. Nf2 {[%clk 0:00:42]}  Nf6 {[%clk 0:01:23]} 43. Nd1 {[%clk 0:00:40]}  Be5 {[%clk 0:01:23]} 44. Ne3 {[%clk 0:00:39]}  f4 {[%clk 0:01:23]} 45. Nd1 {[%clk 0:00:34]}  Rxh7 {[%clk 0:01:22]} 46. Rxh7 {[%clk 0:00:34]}  Kxh7 {[%clk 0:01:22]} 47. Nf2 {[%clk 0:00:31]}  f3+ {[%clk 0:01:17]} 48. Kh2 {[%clk 0:00:31]}  Kg6 {[%clk 0:01:18]} 49. Rg1 {[%clk 0:00:28]}  Kf5 {[%clk 0:01:18]} 50. Re1 {[%clk 0:00:28]}  Nh5 {[%clk 0:01:17]} 51. Rg1 {[%clk 0:00:28]}  Bd4 {[%clk 0:01:03]} 52. Rf1 {[%clk 0:00:26]}  Bxf2 {[%clk 0:00:56]} 53. Rxf2 {[%clk 0:00:26]}  Nf6 {[%clk 0:00:57]} 54. a3 {[%clk 0:00:20]}  Ke4 {[%clk 0:00:46]} 55. axb4 {[%clk 0:00:20]}  cxb4 {[%clk 0:00:47]} 56. Ra2 {[%clk 0:00:20]}  Ke3 {[%clk 0:00:47]} 57. Rxa6 {[%clk 0:00:19]}  Ne4 {[%clk 0:00:48]} 58. Ra1 {[%clk 0:00:18]}  Ke2 {[%clk 0:00:47]} 59. Ra2+ {[%clk 0:00:17]}  Nd2 {[%clk 0:00:48]} 60. c5 {[%clk 0:00:16]}  f2 {[%clk 0:00:48]} 61. Ra1 {[%clk 0:00:16]}  Nf3+ {[%clk 0:00:43]} 62. Kg2 {[%clk 0:00:15]}  Ne1+ {[%clk 0:00:43]} 63. Kh2 {[%clk 0:00:14]}  f1=Q {[%clk 0:00:43]} 64. Ra2+ {[%clk 0:00:13]}  Kd3 {[%clk 0:00:43]} 65. c6 {[%clk 0:00:13]}  Nf3# {[%clk 0:00:42]} 0-1


[Site "https://www.chess.com"]

[Event "Titled Tuesday Blitz November 07 Early 2023"]
[White "Bacrot, Etienne"]
[Black "Sturt, Raven"]
[WhiteFideId "605506"]
[BlackFideId "2007304"]
[WhiteElo "2828"]
[BlackElo "2596"]
[Result "1-0"]
[Round "3"]
[TimeControl "180+1"]
[Date "2023.11.07"]
[WhiteClock "0:01:51"]
[BlackClock "0:00:00"]
[Board "42"]

1. e4 {[%clk 0:02:50]}  e5 {[%clk 0:02:56]} 2. Nf3 {[%clk 0:02:49]}  Nc6 {[%clk 0:02:56]} 3. Bb5 {[%clk 0:02:49]}  f5 {[%clk 0:02:56]} 4. d3 {[%clk 0:02:48]}  fxe4 {[%clk 0:02:56]} 5. dxe4 {[%clk 0:02:48]}  Nf6 {[%clk 0:02:56]} 6. Qd3 {[%clk 0:02:30]}  Bb4+ {[%clk 0:02:53]} 7. c3 {[%clk 0:02:29]}  Bc5 {[%clk 0:02:49]} 8. O-O {[%clk 0:02:24]}  d6 {[%clk 0:02:48]} 9. b4 {[%clk 0:02:21]}  Bb6 {[%clk 0:02:48]} 10. Bg5 {[%clk 0:02:18]}  h6 {[%clk 0:02:35]} 11. Bh4 {[%clk 0:02:16]}  g5 {[%clk 0:02:33]} 12. Bg3 {[%clk 0:02:16]}  h5 {[%clk 0:02:12]} 13. Nxg5 {[%clk 0:02:06]}  h4 {[%clk 0:02:11]} 14. Bxe5 {[%clk 0:02:06]}  Rg8 {[%clk 0:00:00]} 15. Bf4 {[%clk 0:01:51]} 1-0


[Site "https://www.chess.com"]